Workbook

Sheet Menu
E26: Empresa: | G26: Empresa ABCDE

Sheet Colab - Previsto
D10: Empresa: | E10: Empresa ABCDE
C12: CADASTRO DE COLABORADORES Insira os dados previstos dos seus colaboradores.
B13: Matrícula | C13: Colaborador | D13: CBO | E13: Área | F13: Cargo | G13: Salário Base | H13: Data Admissão | I13: Hora Extra 50% | J13: Hora Extra 100% | K13: Valor Hora Extra | L13: % Insalubridade | M13: Valor Insalubridade | N13: % Periculosidade | O13: Valor Periculosidade | P13: Salário Bruto | Q13: INSS | R13: IR | S13: Outras Deduções | T13: Outras Receitas | U13: Salário Líquido | V13: Mês Referência | W13: Ano Referência
B14: 9001 | C14: José da Silva | D14: 1234 | E14: Administrativo | F14: Assistente Administrativo | G14: 2500 | H14: 2020-02-01 | I14: 1 | J14: 5 | K14: =SUM((G14/220)*I14*1.5,(G14/220)*J14*2) -> 130.6818182 | L14: 0 | M14: =IF(L14="",0,G14*L14) -> 0 | N14: 0 | O14: =IF(N14="",0,G14*N14) -> 0 | P14: =G14+K14+M14+O14 -> 2630.681818 | Q14: =IFERROR(P14*VLOOKUP(P14,CG!$B$16:$C$19,2,1),0) -> 236.7613636 | R14: =(P14-Q14-S14)*VLOOKUP((P14-Q14-S14),CG!$E$16:$G$20,2,1)-VLOOKUP((P14-Q14-S14),CG!$E$16:$G$20,3,1) -> 36.74403409 | U14: =P14-Q14-R14-S14+T14 -> 2357.17642 | V14: Janeiro | W14: 2021
B15: 9002 | C15: João Alves | D15: 5678 | E15: Produção | F15: Auxiliar de PCP | G15: 1200 | H15: 2019-10-15 | I15: 3 | J15: 2 | K15: =SUM((G15/220)*I15*1.5,(G15/220)*J15*2) -> 46.36363636 | L15: 0 | M15: =IF(L15="",0,G15*L15) -> 0 | N15: 0 | O15: =IF(N15="",0,G15*N15) -> 0 | P15: =G15+K15+M15+O15 -> 1246.363636 | Q15: =IFERROR(P15*VLOOKUP(P15,CG!$B$16:$C$19,2,1),0) -> 93.47727273 | R15: =(P15-Q15-S15)*VLOOKUP((P15-Q15-S15),CG!$E$16:$G$20,2,1)-VLOOKUP((P15-Q15-S15),CG!$E$16:$G$20,3,1) -> 0 | U15: =P15-Q15-R15-S15+T15 -> 1152.886364 | V15: Fevereiro | W15: 2021
B16: 9003 | C16: Paulo Vitor | D16: 6789 | E16: Almoxarifado | F16: Almoxarife | G16: 1500 | H16: 2019-05-10 | I16: 10 | J16: 2 | K16: 129.5454545 | L16: 0.1 | M16: 150 | N16: 0.2 | O16: 300 | P16: 2079.545455 | Q16: =IFERROR(P16*VLOOKUP(P16,CG!$B$16:$C$19,2,1),0) -> 155.9659091 | R16: =(P16-Q16-S16)*VLOOKUP((P16-Q16-S16),CG!$E$16:$G$20,2,1)-VLOOKUP((P16-Q16-S16),CG!$E$16:$G$20,3,1) -> 1.468465909 | U16: 1922.11108 | V16: Março | W16: 2021
K17: 0 | M17: 0 | O17: 0 | P17: 0 | Q17: =IFERROR(P17*VLOOKUP(P17,CG!$B$16:$C$19,2,1),0) -> 0 | R17: =(P17-Q17-S17)*VLOOKUP((P17-Q17-S17),CG!$E$16:$G$20,2,1)-VLOOKUP((P17-Q17-S17),CG!$E$16:$G$20,3,1) -> 0 | U17: 0
K18: =SUM((G18/220)*I18*1.5,(G18/220)*J18*2) -> 0 | M18: =IF(L18="",0,G18*L18) -> 0 | O18: =IF(N18="",0,G18*N18) -> 0 | P18: =G18+K18+M18+O18 -> 0 | Q18: =IFERROR(P18*VLOOKUP(P18,CG!$B$16:$C$19,2,1),0) -> 0 | R18: =(P18-Q18-S18)*VLOOKUP((P18-Q18-S18),CG!$E$16:$G$20,2,1)-VLOOKUP((P18-Q18-S18),CG!$E$16:$G$20,3,1) -> 0 | U18: 0
K19: 0 | M19: 0 | O19: 0 | P19: 0 | Q19: =IFERROR(P19*VLOOKUP(P19,CG!$B$16:$C$19,2,1),0) -> 0 | R19: =(P19-Q19-S19)*VLOOKUP((P19-Q19-S19),CG!$E$16:$G$20,2,1)-VLOOKUP((P19-Q19-S19),CG!$E$16:$G$20,3,1) -> 0 | U19: 0
K20: 0 | M20: 0 | O20: 0 | P20: 0 | Q20: =IFERROR(P20*VLOOKUP(P20,CG!$B$16:$C$19,2,1),0) -> 0 | R20: =(P20-Q20-S20)*VLOOKUP((P20-Q20-S20),CG!$E$16:$G$20,2,1)-VLOOKUP((P20-Q20-S20),CG!$E$16:$G$20,3,1) -> 0 | U20: 0
K21: 0 | M21: 0 | O21: 0 | P21: 0 | Q21: =IFERROR(P21*VLOOKUP(P21,CG!$B$16:$C$19,2,1),0) -> 0 | R21: =(P21-Q21-S21)*VLOOKUP((P21-Q21-S21),CG!$E$16:$G$20,2,1)-VLOOKUP((P21-Q21-S21),CG!$E$16:$G$20,3,1) -> 0 | U21: 0
K22: 0 | M22: 0 | O22: 0 | P22: 0 | Q22: =IFERROR(P22*VLOOKUP(P22,CG!$B$16:$C$19,2,1),0) -> 0 | R22: =(P22-Q22-S22)*VLOOKUP((P22-Q22-S22),CG!$E$16:$G$20,2,1)-VLOOKUP((P22-Q22-S22),CG!$E$16:$G$20,3,1) -> 0 | U22: 0
K23: 0 | M23: 0 | O23: 0 | P23: 0 | Q23: =IFERROR(P23*VLOOKUP(P23,CG!$B$16:$C$19,2,1),0) -> 0 | R23: =(P23-Q23-S23)*VLOOKUP((P23-Q23-S23),CG!$E$16:$G$20,2,1)-VLOOKUP((P23-Q23-S23),CG!$E$16:$G$20,3,1) -> 0 | U23: 0
K24: 0 | M24: 0 | O24: 0 | P24: 0 | Q24: =IFERROR(P24*VLOOKUP(P24,CG!$B$16:$C$19,2,1),0) -> 0 | R24: =(P24-Q24-S24)*VLOOKUP((P24-Q24-S24),CG!$E$16:$G$20,2,1)-VLOOKUP((P24-Q24-S24),CG!$E$16:$G$20,3,1) -> 0 | U24: 0
K25: 0 | M25: 0 | O25: 0 | P25: 0 | Q25: =IFERROR(P25*VLOOKUP(P25,CG!$B$16:$C$19,2,1),0) -> 0 | R25: =(P25-Q25-S25)*VLOOKUP((P25-Q25-S25),CG!$E$16:$G$20,2,1)-VLOOKUP((P25-Q25-S25),CG!$E$16:$G$20,3,1) -> 0 | U25: 0
K26: 0 | M26: 0 | O26: 0 | P26: 0 | Q26: =IFERROR(P26*VLOOKUP(P26,CG!$B$16:$C$19,2,1),0) -> 0 | R26: =(P26-Q26-S26)*VLOOKUP((P26-Q26-S26),CG!$E$16:$G$20,2,1)-VLOOKUP((P26-Q26-S26),CG!$E$16:$G$20,3,1) -> 0 | U26: 0
K27: 0 | M27: 0 | O27: 0 | P27: 0 | Q27: =IFERROR(P27*VLOOKUP(P27,CG!$B$16:$C$19,2,1),0) -> 0 | R27: =(P27-Q27-S27)*VLOOKUP((P27-Q27-S27),CG!$E$16:$G$20,2,1)-VLOOKUP((P27-Q27-S27),CG!$E$16:$G$20,3,1) -> 0 | U27: 0
K28: 0 | M28: 0 | O28: 0 | P28: 0 | Q28: =IFERROR(P28*VLOOKUP(P28,CG!$B$16:$C$19,2,1),0) -> 0 | R28: =(P28-Q28-S28)*VLOOKUP((P28-Q28-S28),CG!$E$16:$G$20,2,1)-VLOOKUP((P28-Q28-S28),CG!$E$16:$G$20,3,1) -> 0 | U28: 0
K29: 0 | M29: 0 | O29: 0 | P29: 0 | Q29: =IFERROR(P29*VLOOKUP(P29,CG!$B$16:$C$19,2,1),0) -> 0 | R29: =(P29-Q29-S29)*VLOOKUP((P29-Q29-S29),CG!$E$16:$G$20,2,1)-VLOOKUP((P29-Q29-S29),CG!$E$16:$G$20,3,1) -> 0 | U29: 0
K30: 0 | M30: 0 | O30: 0 | P30: 0 | Q30: =IFERROR(P30*VLOOKUP(P30,CG!$B$16:$C$19,2,1),0) -> 0 | R30: =(P30-Q30-S30)*VLOOKUP((P30-Q30-S30),CG!$E$16:$G$20,2,1)-VLOOKUP((P30-Q30-S30),CG!$E$16:$G$20,3,1) -> 0 | U30: 0
K31: 0 | M31: 0 | O31: 0 | P31: 0 | Q31: =IFERROR(P31*VLOOKUP(P31,CG!$B$16:$C$19,2,1),0) -> 0 | R31: =(P31-Q31-S31)*VLOOKUP((P31-Q31-S31),CG!$E$16:$G$20,2,1)-VLOOKUP((P31-Q31-S31),CG!$E$16:$G$20,3,1) -> 0 | U31: 0
K32: 0 | M32: 0 | O32: 0 | P32: 0 | Q32: =IFERROR(P32*VLOOKUP(P32,CG!$B$16:$C$19,2,1),0) -> 0 | R32: =(P32-Q32-S32)*VLOOKUP((P32-Q32-S32),CG!$E$16:$G$20,2,1)-VLOOKUP((P32-Q32-S32),CG!$E$16:$G$20,3,1) -> 0 | U32: 0
K33: 0 | M33: 0 | O33: 0 | P33: 0 | Q33: =IFERROR(P33*VLOOKUP(P33,CG!$B$16:$C$19,2,1),0) -> 0 | R33: =(P33-Q33-S33)*VLOOKUP((P33-Q33-S33),CG!$E$16:$G$20,2,1)-VLOOKUP((P33-Q33-S33),CG!$E$16:$G$20,3,1) -> 0 | U33: 0
K34: 0 | M34: 0 | O34: 0 | P34: 0 | Q34: =IFERROR(P34*VLOOKUP(P34,CG!$B$16:$C$19,2,1),0) -> 0 | R34: =(P34-Q34-S34)*VLOOKUP((P34-Q34-S34),CG!$E$16:$G$20,2,1)-VLOOKUP((P34-Q34-S34),CG!$E$16:$G$20,3,1) -> 0 | U34: 0
K35: 0 | M35: 0 | O35: 0 | P35: 0 | Q35: =IFERROR(P35*VLOOKUP(P35,CG!$B$16:$C$19,2,1),0) -> 0 | R35: =(P35-Q35-S35)*VLOOKUP((P35-Q35-S35),CG!$E$16:$G$20,2,1)-VLOOKUP((P35-Q35-S35),CG!$E$16:$G$20,3,1) -> 0 | U35: 0
K36: 0 | M36: 0 | O36: 0 | P36: 0 | Q36: =IFERROR(P36*VLOOKUP(P36,CG!$B$16:$C$19,2,1),0) -> 0 | R36: =(P36-Q36-S36)*VLOOKUP((P36-Q36-S36),CG!$E$16:$G$20,2,1)-VLOOKUP((P36-Q36-S36),CG!$E$16:$G$20,3,1) -> 0 | U36: 0
K37: 0 | M37: 0 | O37: 0 | P37: 0 | Q37: =IFERROR(P37*VLOOKUP(P37,CG!$B$16:$C$19,2,1),0) -> 0 | R37: =(P37-Q37-S37)*VLOOKUP((P37-Q37-S37),CG!$E$16:$G$20,2,1)-VLOOKUP((P37-Q37-S37),CG!$E$16:$G$20,3,1) -> 0 | U37: 0
K38: 0 | M38: 0 | O38: 0 | P38: 0 | Q38: =IFERROR(P38*VLOOKUP(P38,CG!$B$16:$C$19,2,1),0) -> 0 | R38: =(P38-Q38-S38)*VLOOKUP((P38-Q38-S38),CG!$E$16:$G$20,2,1)-VLOOKUP((P38-Q38-S38),CG!$E$16:$G$20,3,1) -> 0 | U38: 0
K39: 0 | M39: 0 | O39: 0 | P39: 0 | Q39: =IFERROR(P39*VLOOKUP(P39,CG!$B$16:$C$19,2,1),0) -> 0 | R39: =(P39-Q39-S39)*VLOOKUP((P39-Q39-S39),CG!$E$16:$G$20,2,1)-VLOOKUP((P39-Q39-S39),CG!$E$16:$G$20,3,1) -> 0 | U39: 0
K40: 0 | M40: 0 | O40: 0 | P40: 0 | Q40: =IFERROR(P40*VLOOKUP(P40,CG!$B$16:$C$19,2,1),0) -> 0 | R40: =(P40-Q40-S40)*VLOOKUP((P40-Q40-S40),CG!$E$16:$G$20,2,1)-VLOOKUP((P40-Q40-S40),CG!$E$16:$G$20,3,1) -> 0 | U40: 0
K41: 0 | M41: 0 | O41: 0 | P41: 0 | Q41: =IFERROR(P41*VLOOKUP(P41,CG!$B$16:$C$19,2,1),0) -> 0 | R41: =(P41-Q41-S41)*VLOOKUP((P41-Q41-S41),CG!$E$16:$G$20,2,1)-VLOOKUP((P41-Q41-S41),CG!$E$16:$G$20,3,1) -> 0 | U41: 0
K42: 0 | M42: 0 | O42: 0 | P42: 0 | Q42: =IFERROR(P42*VLOOKUP(P42,CG!$B$16:$C$19,2,1),0) -> 0 | R42: =(P42-Q42-S42)*VLOOKUP((P42-Q42-S42),CG!$E$16:$G$20,2,1)-VLOOKUP((P42-Q42-S42),CG!$E$16:$G$20,3,1) -> 0 | U42: 0
K43: 0 | M43: 0 | O43: 0 | P43: 0 | Q43: =IFERROR(P43*VLOOKUP(P43,CG!$B$16:$C$19,2,1),0) -> 0 | R43: =(P43-Q43-S43)*VLOOKUP((P43-Q43-S43),CG!$E$16:$G$20,2,1)-VLOOKUP((P43-Q43-S43),CG!$E$16:$G$20,3,1) -> 0 | U43: 0
K44: 0 | M44: 0 | O44: 0 | P44: 0 | Q44: =IFERROR(P44*VLOOKUP(P44,CG!$B$16:$C$19,2,1),0) -> 0 | R44: =(P44-Q44-S44)*VLOOKUP((P44-Q44-S44),CG!$E$16:$G$20,2,1)-VLOOKUP((P44-Q44-S44),CG!$E$16:$G$20,3,1) -> 0 | U44: 0
K45: 0 | M45: 0 | O45: 0 | P45: 0 | Q45: =IFERROR(P45*VLOOKUP(P45,CG!$B$16:$C$19,2,1),0) -> 0 | R45: =(P45-Q45-S45)*VLOOKUP((P45-Q45-S45),CG!$E$16:$G$20,2,1)-VLOOKUP((P45-Q45-S45),CG!$E$16:$G$20,3,1) -> 0 | U45: 0
K46: 0 | M46: 0 | O46: 0 | P46: 0 | Q46: =IFERROR(P46*VLOOKUP(P46,CG!$B$16:$C$19,2,1),0) -> 0 | R46: =(P46-Q46-S46)*VLOOKUP((P46-Q46-S46),CG!$E$16:$G$20,2,1)-VLOOKUP((P46-Q46-S46),CG!$E$16:$G$20,3,1) -> 0 | U46: 0
K47: 0 | M47: 0 | O47: 0 | P47: 0 | Q47: =IFERROR(P47*VLOOKUP(P47,CG!$B$16:$C$19,2,1),0) -> 0 | R47: =(P47-Q47-S47)*VLOOKUP((P47-Q47-S47),CG!$E$16:$G$20,2,1)-VLOOKUP((P47-Q47-S47),CG!$E$16:$G$20,3,1) -> 0 | U47: 0
K48: 0 | M48: 0 | O48: 0 | P48: 0 | Q48: =IFERROR(P48*VLOOKUP(P48,CG!$B$16:$C$19,2,1),0) -> 0 | R48: =(P48-Q48-S48)*VLOOKUP((P48-Q48-S48),CG!$E$16:$G$20,2,1)-VLOOKUP((P48-Q48-S48),CG!$E$16:$G$20,3,1) -> 0 | U48: 0
K49: 0 | M49: 0 | O49: 0 | P49: 0 | Q49: =IFERROR(P49*VLOOKUP(P49,CG!$B$16:$C$19,2,1),0) -> 0 | R49: =(P49-Q49-S49)*VLOOKUP((P49-Q49-S49),CG!$E$16:$G$20,2,1)-VLOOKUP((P49-Q49-S49),CG!$E$16:$G$20,3,1) -> 0 | U49: 0
K50: 0 | M50: 0 | O50: 0 | P50: 0 | Q50: =IFERROR(P50*VLOOKUP(P50,CG!$B$16:$C$19,2,1),0) -> 0 | R50: =(P50-Q50-S50)*VLOOKUP((P50-Q50-S50),CG!$E$16:$G$20,2,1)-VLOOKUP((P50-Q50-S50),CG!$E$16:$G$20,3,1) -> 0 | U50: 0
K51: 0 | M51: 0 | O51: 0 | P51: 0 | Q51: =IFERROR(P51*VLOOKUP(P51,CG!$B$16:$C$19,2,1),0) -> 0 | R51: =(P51-Q51-S51)*VLOOKUP((P51-Q51-S51),CG!$E$16:$G$20,2,1)-VLOOKUP((P51-Q51-S51),CG!$E$16:$G$20,3,1) -> 0 | U51: 0
K52: 0 | M52: 0 | O52: 0 | P52: 0 | Q52: =IFERROR(P52*VLOOKUP(P52,CG!$B$16:$C$19,2,1),0) -> 0 | R52: =(P52-Q52-S52)*VLOOKUP((P52-Q52-S52),CG!$E$16:$G$20,2,1)-VLOOKUP((P52-Q52-S52),CG!$E$16:$G$20,3,1) -> 0 | U52: 0
K53: 0 | M53: 0 | O53: 0 | P53: 0 | Q53: =IFERROR(P53*VLOOKUP(P53,CG!$B$16:$C$19,2,1),0) -> 0 | R53: =(P53-Q53-S53)*VLOOKUP((P53-Q53-S53),CG!$E$16:$G$20,2,1)-VLOOKUP((P53-Q53-S53),CG!$E$16:$G$20,3,1) -> 0 | U53: 0
K54: 0 | M54: 0 | O54: 0 | P54: 0 | Q54: =IFERROR(P54*VLOOKUP(P54,CG!$B$16:$C$19,2,1),0) -> 0 | R54: =(P54-Q54-S54)*VLOOKUP((P54-Q54-S54),CG!$E$16:$G$20,2,1)-VLOOKUP((P54-Q54-S54),CG!$E$16:$G$20,3,1) -> 0 | U54: 0
K55: 0 | M55: 0 | O55: 0 | P55: 0 | Q55: =IFERROR(P55*VLOOKUP(P55,CG!$B$16:$C$19,2,1),0) -> 0 | R55: =(P55-Q55-S55)*VLOOKUP((P55-Q55-S55),CG!$E$16:$G$20,2,1)-VLOOKUP((P55-Q55-S55),CG!$E$16:$G$20,3,1) -> 0 | U55: 0
K56: 0 | M56: 0 | O56: 0 | P56: 0 | Q56: =IFERROR(P56*VLOOKUP(P56,CG!$B$16:$C$19,2,1),0) -> 0 | R56: =(P56-Q56-S56)*VLOOKUP((P56-Q56-S56),CG!$E$16:$G$20,2,1)-VLOOKUP((P56-Q56-S56),CG!$E$16:$G$20,3,1) -> 0 | U56: 0
K57: 0 | M57: 0 | O57: 0 | P57: 0 | Q57: =IFERROR(P57*VLOOKUP(P57,CG!$B$16:$C$19,2,1),0) -> 0 | R57: =(P57-Q57-S57)*VLOOKUP((P57-Q57-S57),CG!$E$16:$G$20,2,1)-VLOOKUP((P57-Q57-S57),CG!$E$16:$G$20,3,1) -> 0 | U57: 0
K58: 0 | M58: 0 | O58: 0 | P58: 0 | Q58: =IFERROR(P58*VLOOKUP(P58,CG!$B$16:$C$19,2,1),0) -> 0 | R58: =(P58-Q58-S58)*VLOOKUP((P58-Q58-S58),CG!$E$16:$G$20,2,1)-VLOOKUP((P58-Q58-S58),CG!$E$16:$G$20,3,1) -> 0 | U58: 0
K59: 0 | M59: 0 | O59: 0 | P59: 0 | Q59: =IFERROR(P59*VLOOKUP(P59,CG!$B$16:$C$19,2,1),0) -> 0 | R59: =(P59-Q59-S59)*VLOOKUP((P59-Q59-S59),CG!$E$16:$G$20,2,1)-VLOOKUP((P59-Q59-S59),CG!$E$16:$G$20,3,1) -> 0 | U59: 0
K60: 0 | M60: 0 | O60: 0 | P60: 0 | Q60: =IFERROR(P60*VLOOKUP(P60,CG!$B$16:$C$19,2,1),0) -> 0 | R60: =(P60-Q60-S60)*VLOOKUP((P60-Q60-S60),CG!$E$16:$G$20,2,1)-VLOOKUP((P60-Q60-S60),CG!$E$16:$G$20,3,1) -> 0 | U60: 0
K61: 0 | M61: 0 | O61: 0 | P61: 0 | Q61: =IFERROR(P61*VLOOKUP(P61,CG!$B$16:$C$19,2,1),0) -> 0 | R61: =(P61-Q61-S61)*VLOOKUP((P61-Q61-S61),CG!$E$16:$G$20,2,1)-VLOOKUP((P61-Q61-S61),CG!$E$16:$G$20,3,1) -> 0 | U61: 0
K62: 0 | M62: 0 | O62: 0 | P62: 0 | Q62: =IFERROR(P62*VLOOKUP(P62,CG!$B$16:$C$19,2,1),0) -> 0 | R62: =(P62-Q62-S62)*VLOOKUP((P62-Q62-S62),CG!$E$16:$G$20,2,1)-VLOOKUP((P62-Q62-S62),CG!$E$16:$G$20,3,1) -> 0 | U62: 0
K63: 0 | M63: 0 | O63: 0 | P63: 0 | Q63: =IFERROR(P63*VLOOKUP(P63,CG!$B$16:$C$19,2,1),0) -> 0 | R63: =(P63-Q63-S63)*VLOOKUP((P63-Q63-S63),CG!$E$16:$G$20,2,1)-VLOOKUP((P63-Q63-S63),CG!$E$16:$G$20,3,1) -> 0 | U63: 0

Sheet Colab - Realizado
D10: Empresa: | E10: Empresa ABCDE
C12: CADASTRO DE COLABORADORES Insira os dados previstos dos seus colaboradores.
B13: Matrícula | C13: Colaborador | D13: CBO | E13: Área | F13: Cargo | G13: Salário Base | H13: Data Admissão | I13: Hora Extra 50% | J13: Hora Extra 100% | K13: Valor Hora Extra | L13: % Insalubridade | M13: Valor Insalubridade | N13: % Periculosidade | O13: Valor Periculosidade | P13: Salário Bruto | Q13: INSS | R13: IR | S13: Outras Deduções | T13: Outras Receitas | U13: Salário Líquido | V13: Mês Referência | W13: Ano Referência | X13: Mês/ano
B14: 9001 | C14: José da Silva | D14: 1234 | E14: Administrativo | F14: Assistente Administrativo | G14: 3000 | H14: 2020-02-01 | I14: 1 | J14: 5 | K14: =SUM((G14/220)*I14*1.5,(G14/220)*J14*2) -> 156.8181818 | L14: 0 | M14: =IF(L14="",0,G14*L14) -> 0 | N14: 0 | O14: =IF(N14="",0,G14*N14) -> 0 | P14: =G14+K14+M14+O14 -> 3156.818182 | Q14: =IFERROR(P14*VLOOKUP(P14,CG!$B$16:$C$19,2,1),0) -> 378.8181818 | R14: =(P14-Q14-S14)*VLOOKUP((P14-Q14-S14),CG!$E$16:$G$20,2,1)-VLOOKUP((P14-Q14-S14),CG!$E$16:$G$20,3,1) -> 65.55 | U14: =P14-Q14-R14-S14+T14 -> 2712.45 | V14: Janeiro | W14: 2021 | X14: =CONCATENATE(V14,"/",W14) -> Janeiro/2021
B15: 9002 | C15: João Alves | D15: 5678 | E15: Produção | F15: Auxiliar de PCP | G15: 2500 | H15: 2019-10-15 | I15: 3 | J15: 2 | K15: =SUM((G15/220)*I15*1.5,(G15/220)*J15*2) -> 96.59090909 | L15: 0 | M15: =IF(L15="",0,G15*L15) -> 0 | N15: 0 | O15: =IF(N15="",0,G15*N15) -> 0 | P15: =G15+K15+M15+O15 -> 2596.590909 | Q15: =IFERROR(P15*VLOOKUP(P15,CG!$B$16:$C$19,2,1),0) -> 233.6931818 | R15: =(P15-Q15-S15)*VLOOKUP((P15-Q15-S15),CG!$E$16:$G$20,2,1)-VLOOKUP((P15-Q15-S15),CG!$E$16:$G$20,3,1) -> 34.41732955 | U15: =P15-Q15-R15-S15+T15 -> 2328.480398 | V15: Janeiro | W15: 2021 | X15: Janeiro/2021
B16: 9003 | C16: Paulo Vitor | D16: 6789 | E16: Almoxarifado | F16: Almoxarife | G16: 1500 | H16: 2019-05-10 | I16: 10 | J16: 2 | K16: 129.5454545 | L16: 0.1 | M16: 150 | N16: 0.2 | O16: 300 | P16: 2079.545455 | Q16: =IFERROR(P16*VLOOKUP(P16,CG!$B$16:$C$19,2,1),0) -> 155.9659091 | R16: =(P16-Q16-S16)*VLOOKUP((P16-Q16-S16),CG!$E$16:$G$20,2,1)-VLOOKUP((P16-Q16-S16),CG!$E$16:$G$20,3,1) -> 1.468465909 | U16: 1922.11108 | V16: Janeiro | W16: 2021 | X16: Janeiro/2021
K17: 0 | M17: 0 | O17: 0 | P17: 0 | Q17: =IFERROR(P17*VLOOKUP(P17,CG!$B$16:$C$19,2,1),0) -> 0 | R17: =(P17-Q17-S17)*VLOOKUP((P17-Q17-S17),CG!$E$16:$G$20,2,1)-VLOOKUP((P17-Q17-S17),CG!$E$16:$G$20,3,1) -> 0 | U17: 0 | X17: /
K18: 0 | M18: 0 | O18: 0 | P18: 0 | Q18: =IFERROR(P18*VLOOKUP(P18,CG!$B$16:$C$19,2,1),0) -> 0 | R18: =(P18-Q18-S18)*VLOOKUP((P18-Q18-S18),CG!$E$16:$G$20,2,1)-VLOOKUP((P18-Q18-S18),CG!$E$16:$G$20,3,1) -> 0 | U18: 0 | X18: /
K19: 0 | M19: 0 | O19: 0 | P19: 0 | Q19: =IFERROR(P19*VLOOKUP(P19,CG!$B$16:$C$19,2,1),0) -> 0 | R19: =(P19-Q19-S19)*VLOOKUP((P19-Q19-S19),CG!$E$16:$G$20,2,1)-VLOOKUP((P19-Q19-S19),CG!$E$16:$G$20,3,1) -> 0 | U19: 0 | X19: /
K20: 0 | M20: 0 | O20: 0 | P20: 0 | Q20: =IFERROR(P20*VLOOKUP(P20,CG!$B$16:$C$19,2,1),0) -> 0 | R20: =(P20-Q20-S20)*VLOOKUP((P20-Q20-S20),CG!$E$16:$G$20,2,1)-VLOOKUP((P20-Q20-S20),CG!$E$16:$G$20,3,1) -> 0 | U20: 0 | X20: /
K21: 0 | M21: 0 | O21: 0 | P21: 0 | Q21: =IFERROR(P21*VLOOKUP(P21,CG!$B$16:$C$19,2,1),0) -> 0 | R21: =(P21-Q21-S21)*VLOOKUP((P21-Q21-S21),CG!$E$16:$G$20,2,1)-VLOOKUP((P21-Q21-S21),CG!$E$16:$G$20,3,1) -> 0 | U21: 0 | X21: /
K22: 0 | M22: 0 | O22: 0 | P22: 0 | Q22: =IFERROR(P22*VLOOKUP(P22,CG!$B$16:$C$19,2,1),0) -> 0 | R22: =(P22-Q22-S22)*VLOOKUP((P22-Q22-S22),CG!$E$16:$G$20,2,1)-VLOOKUP((P22-Q22-S22),CG!$E$16:$G$20,3,1) -> 0 | U22: 0 | X22: /
K23: 0 | M23: 0 | O23: 0 | P23: 0 | Q23: =IFERROR(P23*VLOOKUP(P23,CG!$B$16:$C$19,2,1),0) -> 0 | R23: =(P23-Q23-S23)*VLOOKUP((P23-Q23-S23),CG!$E$16:$G$20,2,1)-VLOOKUP((P23-Q23-S23),CG!$E$16:$G$20,3,1) -> 0 | U23: 0 | X23: /
K24: 0 | M24: 0 | O24: 0 | P24: 0 | Q24: =IFERROR(P24*VLOOKUP(P24,CG!$B$16:$C$19,2,1),0) -> 0 | R24: =(P24-Q24-S24)*VLOOKUP((P24-Q24-S24),CG!$E$16:$G$20,2,1)-VLOOKUP((P24-Q24-S24),CG!$E$16:$G$20,3,1) -> 0 | U24: 0 | X24: /
K25: 0 | M25: 0 | O25: 0 | P25: 0 | Q25: =IFERROR(P25*VLOOKUP(P25,CG!$B$16:$C$19,2,1),0) -> 0 | R25: =(P25-Q25-S25)*VLOOKUP((P25-Q25-S25),CG!$E$16:$G$20,2,1)-VLOOKUP((P25-Q25-S25),CG!$E$16:$G$20,3,1) -> 0 | U25: 0 | X25: /
K26: 0 | M26: 0 | O26: 0 | P26: 0 | Q26: =IFERROR(P26*VLOOKUP(P26,CG!$B$16:$C$19,2,1),0) -> 0 | R26: =(P26-Q26-S26)*VLOOKUP((P26-Q26-S26),CG!$E$16:$G$20,2,1)-VLOOKUP((P26-Q26-S26),CG!$E$16:$G$20,3,1) -> 0 | U26: 0 | X26: /
K27: 0 | M27: 0 | O27: 0 | P27: 0 | Q27: =IFERROR(P27*VLOOKUP(P27,CG!$B$16:$C$19,2,1),0) -> 0 | R27: =(P27-Q27-S27)*VLOOKUP((P27-Q27-S27),CG!$E$16:$G$20,2,1)-VLOOKUP((P27-Q27-S27),CG!$E$16:$G$20,3,1) -> 0 | U27: 0 | X27: /
K28: 0 | M28: 0 | O28: 0 | P28: 0 | Q28: =IFERROR(P28*VLOOKUP(P28,CG!$B$16:$C$19,2,1),0) -> 0 | R28: =(P28-Q28-S28)*VLOOKUP((P28-Q28-S28),CG!$E$16:$G$20,2,1)-VLOOKUP((P28-Q28-S28),CG!$E$16:$G$20,3,1) -> 0 | U28: 0 | X28: /
K29: 0 | M29: 0 | O29: 0 | P29: 0 | Q29: =IFERROR(P29*VLOOKUP(P29,CG!$B$16:$C$19,2,1),0) -> 0 | R29: =(P29-Q29-S29)*VLOOKUP((P29-Q29-S29),CG!$E$16:$G$20,2,1)-VLOOKUP((P29-Q29-S29),CG!$E$16:$G$20,3,1) -> 0 | U29: 0 | X29: /
K30: 0 | M30: 0 | O30: 0 | P30: 0 | Q30: =IFERROR(P30*VLOOKUP(P30,CG!$B$16:$C$19,2,1),0) -> 0 | R30: =(P30-Q30-S30)*VLOOKUP((P30-Q30-S30),CG!$E$16:$G$20,2,1)-VLOOKUP((P30-Q30-S30),CG!$E$16:$G$20,3,1) -> 0 | U30: 0 | X30: /
K31: 0 | M31: 0 | O31: 0 | P31: 0 | Q31: =IFERROR(P31*VLOOKUP(P31,CG!$B$16:$C$19,2,1),0) -> 0 | R31: =(P31-Q31-S31)*VLOOKUP((P31-Q31-S31),CG!$E$16:$G$20,2,1)-VLOOKUP((P31-Q31-S31),CG!$E$16:$G$20,3,1) -> 0 | U31: 0 | X31: /
K32: 0 | M32: 0 | O32: 0 | P32: 0 | Q32: =IFERROR(P32*VLOOKUP(P32,CG!$B$16:$C$19,2,1),0) -> 0 | R32: =(P32-Q32-S32)*VLOOKUP((P32-Q32-S32),CG!$E$16:$G$20,2,1)-VLOOKUP((P32-Q32-S32),CG!$E$16:$G$20,3,1) -> 0 | U32: 0 | X32: /
K33: 0 | M33: 0 | O33: 0 | P33: 0 | Q33: =IFERROR(P33*VLOOKUP(P33,CG!$B$16:$C$19,2,1),0) -> 0 | R33: =(P33-Q33-S33)*VLOOKUP((P33-Q33-S33),CG!$E$16:$G$20,2,1)-VLOOKUP((P33-Q33-S33),CG!$E$16:$G$20,3,1) -> 0 | U33: 0 | X33: /
K34: 0 | M34: 0 | O34: 0 | P34: 0 | Q34: =IFERROR(P34*VLOOKUP(P34,CG!$B$16:$C$19,2,1),0) -> 0 | R34: =(P34-Q34-S34)*VLOOKUP((P34-Q34-S34),CG!$E$16:$G$20,2,1)-VLOOKUP((P34-Q34-S34),CG!$E$16:$G$20,3,1) -> 0 | U34: 0 | X34: /
K35: 0 | M35: 0 | O35: 0 | P35: 0 | Q35: =IFERROR(P35*VLOOKUP(P35,CG!$B$16:$C$19,2,1),0) -> 0 | R35: =(P35-Q35-S35)*VLOOKUP((P35-Q35-S35),CG!$E$16:$G$20,2,1)-VLOOKUP((P35-Q35-S35),CG!$E$16:$G$20,3,1) -> 0 | U35: 0 | X35: /
K36: 0 | M36: 0 | O36: 0 | P36: 0 | Q36: =IFERROR(P36*VLOOKUP(P36,CG!$B$16:$C$19,2,1),0) -> 0 | R36: =(P36-Q36-S36)*VLOOKUP((P36-Q36-S36),CG!$E$16:$G$20,2,1)-VLOOKUP((P36-Q36-S36),CG!$E$16:$G$20,3,1) -> 0 | U36: 0 | X36: /
K37: 0 | M37: 0 | O37: 0 | P37: 0 | Q37: =IFERROR(P37*VLOOKUP(P37,CG!$B$16:$C$19,2,1),0) -> 0 | R37: =(P37-Q37-S37)*VLOOKUP((P37-Q37-S37),CG!$E$16:$G$20,2,1)-VLOOKUP((P37-Q37-S37),CG!$E$16:$G$20,3,1) -> 0 | U37: 0 | X37: /
K38: 0 | M38: 0 | O38: 0 | P38: 0 | Q38: =IFERROR(P38*VLOOKUP(P38,CG!$B$16:$C$19,2,1),0) -> 0 | R38: =(P38-Q38-S38)*VLOOKUP((P38-Q38-S38),CG!$E$16:$G$20,2,1)-VLOOKUP((P38-Q38-S38),CG!$E$16:$G$20,3,1) -> 0 | U38: 0 | X38: /
K39: 0 | M39: 0 | O39: 0 | P39: 0 | Q39: =IFERROR(P39*VLOOKUP(P39,CG!$B$16:$C$19,2,1),0) -> 0 | R39: =(P39-Q39-S39)*VLOOKUP((P39-Q39-S39),CG!$E$16:$G$20,2,1)-VLOOKUP((P39-Q39-S39),CG!$E$16:$G$20,3,1) -> 0 | U39: 0 | X39: /
K40: 0 | M40: 0 | O40: 0 | P40: 0 | Q40: =IFERROR(P40*VLOOKUP(P40,CG!$B$16:$C$19,2,1),0) -> 0 | R40: =(P40-Q40-S40)*VLOOKUP((P40-Q40-S40),CG!$E$16:$G$20,2,1)-VLOOKUP((P40-Q40-S40),CG!$E$16:$G$20,3,1) -> 0 | U40: 0 | X40: /
K41: 0 | M41: 0 | O41: 0 | P41: 0 | Q41: =IFERROR(P41*VLOOKUP(P41,CG!$B$16:$C$19,2,1),0) -> 0 | R41: =(P41-Q41-S41)*VLOOKUP((P41-Q41-S41),CG!$E$16:$G$20,2,1)-VLOOKUP((P41-Q41-S41),CG!$E$16:$G$20,3,1) -> 0 | U41: 0 | X41: /
K42: 0 | M42: 0 | O42: 0 | P42: 0 | Q42: =IFERROR(P42*VLOOKUP(P42,CG!$B$16:$C$19,2,1),0) -> 0 | R42: =(P42-Q42-S42)*VLOOKUP((P42-Q42-S42),CG!$E$16:$G$20,2,1)-VLOOKUP((P42-Q42-S42),CG!$E$16:$G$20,3,1) -> 0 | U42: 0 | X42: /
K43: 0 | M43: 0 | O43: 0 | P43: 0 | Q43: =IFERROR(P43*VLOOKUP(P43,CG!$B$16:$C$19,2,1),0) -> 0 | R43: =(P43-Q43-S43)*VLOOKUP((P43-Q43-S43),CG!$E$16:$G$20,2,1)-VLOOKUP((P43-Q43-S43),CG!$E$16:$G$20,3,1) -> 0 | U43: 0 | X43: /
K44: 0 | M44: 0 | O44: 0 | P44: 0 | Q44: =IFERROR(P44*VLOOKUP(P44,CG!$B$16:$C$19,2,1),0) -> 0 | R44: =(P44-Q44-S44)*VLOOKUP((P44-Q44-S44),CG!$E$16:$G$20,2,1)-VLOOKUP((P44-Q44-S44),CG!$E$16:$G$20,3,1) -> 0 | U44: 0 | X44: /
K45: 0 | M45: 0 | O45: 0 | P45: 0 | Q45: =IFERROR(P45*VLOOKUP(P45,CG!$B$16:$C$19,2,1),0) -> 0 | R45: =(P45-Q45-S45)*VLOOKUP((P45-Q45-S45),CG!$E$16:$G$20,2,1)-VLOOKUP((P45-Q45-S45),CG!$E$16:$G$20,3,1) -> 0 | U45: 0 | X45: /
K46: 0 | M46: 0 | O46: 0 | P46: 0 | Q46: =IFERROR(P46*VLOOKUP(P46,CG!$B$16:$C$19,2,1),0) -> 0 | R46: =(P46-Q46-S46)*VLOOKUP((P46-Q46-S46),CG!$E$16:$G$20,2,1)-VLOOKUP((P46-Q46-S46),CG!$E$16:$G$20,3,1) -> 0 | U46: 0 | X46: /
K47: 0 | M47: 0 | O47: 0 | P47: 0 | Q47: =IFERROR(P47*VLOOKUP(P47,CG!$B$16:$C$19,2,1),0) -> 0 | R47: =(P47-Q47-S47)*VLOOKUP((P47-Q47-S47),CG!$E$16:$G$20,2,1)-VLOOKUP((P47-Q47-S47),CG!$E$16:$G$20,3,1) -> 0 | U47: 0 | X47: /
K48: 0 | M48: 0 | O48: 0 | P48: 0 | Q48: =IFERROR(P48*VLOOKUP(P48,CG!$B$16:$C$19,2,1),0) -> 0 | R48: =(P48-Q48-S48)*VLOOKUP((P48-Q48-S48),CG!$E$16:$G$20,2,1)-VLOOKUP((P48-Q48-S48),CG!$E$16:$G$20,3,1) -> 0 | U48: 0 | X48: /
K49: 0 | M49: 0 | O49: 0 | P49: 0 | Q49: =IFERROR(P49*VLOOKUP(P49,CG!$B$16:$C$19,2,1),0) -> 0 | R49: =(P49-Q49-S49)*VLOOKUP((P49-Q49-S49),CG!$E$16:$G$20,2,1)-VLOOKUP((P49-Q49-S49),CG!$E$16:$G$20,3,1) -> 0 | U49: 0 | X49: /
K50: 0 | M50: 0 | O50: 0 | P50: 0 | Q50: =IFERROR(P50*VLOOKUP(P50,CG!$B$16:$C$19,2,1),0) -> 0 | R50: =(P50-Q50-S50)*VLOOKUP((P50-Q50-S50),CG!$E$16:$G$20,2,1)-VLOOKUP((P50-Q50-S50),CG!$E$16:$G$20,3,1) -> 0 | U50: 0 | X50: /
K51: 0 | M51: 0 | O51: 0 | P51: 0 | Q51: =IFERROR(P51*VLOOKUP(P51,CG!$B$16:$C$19,2,1),0) -> 0 | R51: =(P51-Q51-S51)*VLOOKUP((P51-Q51-S51),CG!$E$16:$G$20,2,1)-VLOOKUP((P51-Q51-S51),CG!$E$16:$G$20,3,1) -> 0 | U51: 0 | X51: /
K52: 0 | M52: 0 | O52: 0 | P52: 0 | Q52: =IFERROR(P52*VLOOKUP(P52,CG!$B$16:$C$19,2,1),0) -> 0 | R52: =(P52-Q52-S52)*VLOOKUP((P52-Q52-S52),CG!$E$16:$G$20,2,1)-VLOOKUP((P52-Q52-S52),CG!$E$16:$G$20,3,1) -> 0 | U52: 0 | X52: /
K53: 0 | M53: 0 | O53: 0 | P53: 0 | Q53: =IFERROR(P53*VLOOKUP(P53,CG!$B$16:$C$19,2,1),0) -> 0 | R53: =(P53-Q53-S53)*VLOOKUP((P53-Q53-S53),CG!$E$16:$G$20,2,1)-VLOOKUP((P53-Q53-S53),CG!$E$16:$G$20,3,1) -> 0 | U53: 0 | X53: /
K54: 0 | M54: 0 | O54: 0 | P54: 0 | Q54: =IFERROR(P54*VLOOKUP(P54,CG!$B$16:$C$19,2,1),0) -> 0 | R54: =(P54-Q54-S54)*VLOOKUP((P54-Q54-S54),CG!$E$16:$G$20,2,1)-VLOOKUP((P54-Q54-S54),CG!$E$16:$G$20,3,1) -> 0 | U54: 0 | X54: /
K55: 0 | M55: 0 | O55: 0 | P55: 0 | Q55: =IFERROR(P55*VLOOKUP(P55,CG!$B$16:$C$19,2,1),0) -> 0 | R55: =(P55-Q55-S55)*VLOOKUP((P55-Q55-S55),CG!$E$16:$G$20,2,1)-VLOOKUP((P55-Q55-S55),CG!$E$16:$G$20,3,1) -> 0 | U55: 0 | X55: /
K56: 0 | M56: 0 | O56: 0 | P56: 0 | Q56: =IFERROR(P56*VLOOKUP(P56,CG!$B$16:$C$19,2,1),0) -> 0 | R56: =(P56-Q56-S56)*VLOOKUP((P56-Q56-S56),CG!$E$16:$G$20,2,1)-VLOOKUP((P56-Q56-S56),CG!$E$16:$G$20,3,1) -> 0 | U56: 0 | X56: /
K57: 0 | M57: 0 | O57: 0 | P57: 0 | Q57: =IFERROR(P57*VLOOKUP(P57,CG!$B$16:$C$19,2,1),0) -> 0 | R57: =(P57-Q57-S57)*VLOOKUP((P57-Q57-S57),CG!$E$16:$G$20,2,1)-VLOOKUP((P57-Q57-S57),CG!$E$16:$G$20,3,1) -> 0 | U57: 0 | X57: /
K58: 0 | M58: 0 | O58: 0 | P58: 0 | Q58: =IFERROR(P58*VLOOKUP(P58,CG!$B$16:$C$19,2,1),0) -> 0 | R58: =(P58-Q58-S58)*VLOOKUP((P58-Q58-S58),CG!$E$16:$G$20,2,1)-VLOOKUP((P58-Q58-S58),CG!$E$16:$G$20,3,1) -> 0 | U58: 0 | X58: /
K59: 0 | M59: 0 | O59: 0 | P59: 0 | Q59: =IFERROR(P59*VLOOKUP(P59,CG!$B$16:$C$19,2,1),0) -> 0 | R59: =(P59-Q59-S59)*VLOOKUP((P59-Q59-S59),CG!$E$16:$G$20,2,1)-VLOOKUP((P59-Q59-S59),CG!$E$16:$G$20,3,1) -> 0 | U59: 0 | X59: /
K60: 0 | M60: 0 | O60: 0 | P60: 0 | Q60: =IFERROR(P60*VLOOKUP(P60,CG!$B$16:$C$19,2,1),0) -> 0 | R60: =(P60-Q60-S60)*VLOOKUP((P60-Q60-S60),CG!$E$16:$G$20,2,1)-VLOOKUP((P60-Q60-S60),CG!$E$16:$G$20,3,1) -> 0 | U60: 0 | X60: /
K61: 0 | M61: 0 | O61: 0 | P61: 0 | Q61: =IFERROR(P61*VLOOKUP(P61,CG!$B$16:$C$19,2,1),0) -> 0 | R61: =(P61-Q61-S61)*VLOOKUP((P61-Q61-S61),CG!$E$16:$G$20,2,1)-VLOOKUP((P61-Q61-S61),CG!$E$16:$G$20,3,1) -> 0 | U61: 0 | X61: /
K62: 0 | M62: 0 | O62: 0 | P62: 0 | Q62: =IFERROR(P62*VLOOKUP(P62,CG!$B$16:$C$19,2,1),0) -> 0 | R62: =(P62-Q62-S62)*VLOOKUP((P62-Q62-S62),CG!$E$16:$G$20,2,1)-VLOOKUP((P62-Q62-S62),CG!$E$16:$G$20,3,1) -> 0 | U62: 0 | X62: /
K63: 0 | M63: 0 | O63: 0 | P63: 0 | Q63: =IFERROR(P63*VLOOKUP(P63,CG!$B$16:$C$19,2,1),0) -> 0 | R63: =(P63-Q63-S63)*VLOOKUP((P63-Q63-S63),CG!$E$16:$G$20,2,1)-VLOOKUP((P63-Q63-S63),CG!$E$16:$G$20,3,1) -> 0 | U63: 0 | X63: /

Sheet Previsto Realizado
B10: Ano: | C10: 2021 | D10: Empresa: | E10: Empresa ABCDE
C12: Janeiro | D12: Fevereiro | E12: Março | F12: Abril | G12: Maio | H12: Junho | I12: Julho | J12: Agosto | K12: Setembro | L12: Outubro | M12: Novembro | N12: Dezembro
B13: Previsto | C13: =SUMIF('Colab - Previsto'!$V$14:$V$63,'Previsto Realizado'!C$12,'Colab - Previsto'!$U$14:$U$63) -> 2357.17642 | D13: =SUMIF('Colab - Previsto'!$V$14:$V$63,'Previsto Realizado'!D$12,'Colab - Previsto'!$U$14:$U$63) -> 1152.886364 | E13: =SUMIF('Colab - Previsto'!$V$14:$V$63,'Previsto Realizado'!E$12,'Colab - Previsto'!$U$14:$U$63) -> 1922.11108 | F13: =SUMIF('Colab - Previsto'!$V$14:$V$63,'Previsto Realizado'!F$12,'Colab - Previsto'!$U$14:$U$63) -> 0 | G13: =SUMIF('Colab - Previsto'!$V$14:$V$63,'Previsto Realizado'!G$12,'Colab - Previsto'!$U$14:$U$63) -> 0 | H13: =SUMIF('Colab - Previsto'!$V$14:$V$63,'Previsto Realizado'!H$12,'Colab - Previsto'!$U$14:$U$63) -> 0 | I13: =SUMIF('Colab - Previsto'!$V$14:$V$63,'Previsto Realizado'!I$12,'Colab - Previsto'!$U$14:$U$63) -> 0 | J13: =SUMIF('Colab - Previsto'!$V$14:$V$63,'Previsto Realizado'!J$12,'Colab - Previsto'!$U$14:$U$63) -> 0 | K13: =SUMIF('Colab - Previsto'!$V$14:$V$63,'Previsto Realizado'!K$12,'Colab - Previsto'!$U$14:$U$63) -> 0 | L13: =SUMIF('Colab - Previsto'!$V$14:$V$63,'Previsto Realizado'!L$12,'Colab - Previsto'!$U$14:$U$63) -> 0 | M13: =SUMIF('Colab - Previsto'!$V$14:$V$63,'Previsto Realizado'!M$12,'Colab - Previsto'!$U$14:$U$63) -> 0 | N13: =SUMIF('Colab - Previsto'!$V$14:$V$63,'Previsto Realizado'!N$12,'Colab - Previsto'!$U$14:$U$63) -> 0
B14: Realizado | C14: =SUMIF('Colab - Realizado'!$V$14:$V$63,'Previsto Realizado'!C$12,'Colab - Realizado'!$U$14:$U$63) -> 6963.041477 | D14: =SUMIF('Colab - Realizado'!$V$14:$V$63,'Previsto Realizado'!D$12,'Colab - Realizado'!$U$14:$U$63) -> 0 | E14: =SUMIF('Colab - Realizado'!$V$14:$V$63,'Previsto Realizado'!E$12,'Colab - Realizado'!$U$14:$U$63) -> 0 | F14: =SUMIF('Colab - Realizado'!$V$14:$V$63,'Previsto Realizado'!F$12,'Colab - Realizado'!$U$14:$U$63) -> 0 | G14: =SUMIF('Colab - Realizado'!$V$14:$V$63,'Previsto Realizado'!G$12,'Colab - Realizado'!$U$14:$U$63) -> 0 | H14: =SUMIF('Colab - Realizado'!$V$14:$V$63,'Previsto Realizado'!H$12,'Colab - Realizado'!$U$14:$U$63) -> 0 | I14: =SUMIF('Colab - Realizado'!$V$14:$V$63,'Previsto Realizado'!I$12,'Colab - Realizado'!$U$14:$U$63) -> 0 | J14: =SUMIF('Colab - Realizado'!$V$14:$V$63,'Previsto Realizado'!J$12,'Colab - Realizado'!$U$14:$U$63) -> 0 | K14: =SUMIF('Colab - Realizado'!$V$14:$V$63,'Previsto Realizado'!K$12,'Colab - Realizado'!$U$14:$U$63) -> 0 | L14: =SUMIF('Colab - Realizado'!$V$14:$V$63,'Previsto Realizado'!L$12,'Colab - Realizado'!$U$14:$U$63) -> 0 | M14: =SUMIF('Colab - Realizado'!$V$14:$V$63,'Previsto Realizado'!M$12,'Colab - Realizado'!$U$14:$U$63) -> 0 | N14: =SUMIF('Colab - Realizado'!$V$14:$V$63,'Previsto Realizado'!N$12,'Colab - Realizado'!$U$14:$U$63) -> 0

Sheet CG
B10: Empresa: | C10: Empresa ABCDE
B12: CADASTROS GERAIS Insira as configurações necessárias para os cálculos da folha de pagamento.
B14: TABELA INSS | E14: TABELA IR
B15: Salário | C15: % INSS | E15: Salário | F15: % IR | G15: Dedução
B16: 1045 | C16: 0.075 | E16: 0 | F16: 0 | G16: 0
B17: 2089.6 | C17: 0.09 | E17: 1903.98 | F17: 0.075 | G17: 142.8
B18: 3134.4 | C18: 0.12 | E18: 2826.65 | F18: 0.15 | G18: 354.8
B19: 6101.06 | C19: 0.14 | E19: 3751.05 | F19: 0.225 | G19: 636.13
E20: 4664.68 | F20: 0.275 | G20: 869.36
B23: Empresa: | C23: =C10 -> Empresa ABCDE
B24: CNPJ:

Sheet Holerite
C3: =CG!C23 -> Empresa ABCDE | G3: Recibo de Pagamento de Salário | O3: DECLARO TER RECEBIDO A I MPOTÂNCIA LÍQUIDA DISCRIMINADA NESTE RECIBO
P4: ________________________________
C5: =CONCATENATE("CNPJ: ",CG!C24) -> CNPJ: | H5: Janeiro | K5: / | L5: 2021 | Q5: ASSINATURA DO FUNCIONÁRIO
C7: Código | D7: Nome do Funcionário | G7: CBO | H7: Função
A8: =CONCATENATE(H5,"/",L5) -> Janeiro/2021 | C8: 9003 | D8: =IFERROR(VLOOKUP(C8,'Colab - Realizado'!B:C,2,0),"") -> Paulo Vitor | G8: =IFERROR(VLOOKUP(C8,'Colab - Previsto'!B:D,3,0),"") -> 6789 | H8: =IFERROR(VLOOKUP(C8,'Colab - Previsto'!B:F,5,0),"") -> Almoxarife
C10: Cód. | D10: Descrição | G10: Referência | H10: Vencimentos | K10: Descontos
B12: 1 | C12: 101 | D12: SALARIO | G12: 30 d | H12: =IFERROR(SUMIFS('Colab - Realizado'!G14:G63,'Colab - Realizado'!B14:B63,Holerite!C8,'Colab - Realizado'!X14:X63,Holerite!A8),"") -> 1500
B13: 2 | C13: 973 | D13: INSS | G13: =IFERROR(VLOOKUP(E38,CG!$B$16:$C$19,2,1),"") ->  | K13: =IFERROR(SUMIFS('Colab - Realizado'!Q14:Q63,'Colab - Realizado'!B14:B63,Holerite!C8,'Colab - Realizado'!X14:X63,Holerite!A8),"") -> 155.9659091
B14: 3 | C14: 987 | D14: IRFF S.SALARIO | G14: =IFERROR(VLOOKUP(I38,CG!E16:F20,2,1),"") -> 0 | K14: =IFERROR(SUMIFS('Colab - Realizado'!R14:R63,'Colab - Realizado'!B14:B63,Holerite!C8,'Colab - Realizado'!X14:X63,Holerite!A8),"") -> 1.468465909
B15: 4 | C15: 123 | D15: HORA EXTRA 50% | G15: =IFERROR(SUMIFS('Colab - Realizado'!I14:I63,'Colab - Realizado'!B14:B63,Holerite!C8,'Colab - Realizado'!X14:X63,Holerite!H5),"") -> 0 | H15: =(C38/220)*G15*1.5 -> 0
B16: 5 | C16: 124 | D16: HORA EXTRA 100% | G16: =IFERROR(SUMIFS('Colab - Realizado'!J14:J63,'Colab - Realizado'!B14:B63,Holerite!C8,'Colab - Realizado'!X14:X63,Holerite!H5),"") -> 0 | H16: =(C38/220)*G16*2 -> 0
B17: 6
B18: 7
B19: 8
B20: 9
B21: 10
B22: 11
B23: 12
B24: 13
B25: 14 | P25: _____/_____/_____ | Q25: DATA
B26: 15
B27: 16
B28: 17
B29: 18
H31: Total de Vencimentos | K31: Total de Descontos
H32: =SUM(H12:J29) -> 1500 | K32: =SUM(K13:M29) -> 157.434375
H34: Valor Líquido | K34: =H32-K32 -> 1342.565625
C37: Salário Base | E37: Sal. Contr. INSS | F37: Base Cálc. FGTS | G37: FGTS do Mês | I37: Base Cálc. IRRF
C38: =IFERROR(SUMIFS('Colab - Realizado'!G14:G63,'Colab - Realizado'!B14:B63,Holerite!C8,'Colab - Realizado'!X14:X63,Holerite!H5),"") -> 0 | E38: =IFERROR(SUMIFS('Colab - Realizado'!P14:P63,'Colab - Realizado'!B14:B63,Holerite!C8,'Colab - Realizado'!X14:X63,Holerite!H5),"") -> 0 | F38: =IFERROR(SUMIFS('Colab - Realizado'!P14:P63,'Colab - Realizado'!B14:B63,Holerite!C8,'Colab - Realizado'!X14:X63,Holerite!H5),"") -> 0 | G38: =F38*0.08 -> 0 | I38: =IFERROR(SUMIFS('Colab - Realizado'!P14:P63,'Colab - Realizado'!B14:B63,Holerite!C8,'Colab - Realizado'!X14:X63,Holerite!H5),"") -> 0
B41: - - - - - - - - - - - - - - - - - - - - - - - - - - - - - - - - - - - - - - - - - - - - - - - - - - - - - - - - - - - - corte arqui - - - - - - - - - - - - - - - - - - - - - - - - - - - - - - - - - - - - - - - - - - - - - - - - - - - - - - - - - - - -
C44: =IF(C3="","",C3) -> Empresa ABCDE | G44: Recibo de Pagamento de Salário | O44: DECLARO TER RECEBIDO A I MPOTÂNCIA LÍQUIDA DISCRIMINADA NESTE RECIBO
P45: ________________________________
C46: =IF(C5="","",C5) -> CNPJ: | H46: =H5 -> Janeiro | K46: / | L46: =L5 -> 2021 | Q46: ASSINATURA DO FUNCIONÁRIO
C48: Código | D48: Nome do Funcionário | G48: CBO | H48: Função
C49: =IF(C8="","",C8) -> 9003 | D49: =IF(D8="","",D8) -> Paulo Vitor | G49: =IF(G8="","",G8) -> 6789 | H49: =IF(H8="","",H8) -> Almoxarife
C51: Cód. | D51: Descrição | G51: Referência | H51: Vencimentos | K51: Descontos
C53: =IF(C12="","",C12) -> 101 | D53: =IF(D12="","",D12) -> SALARIO | G53: =IF(G12="","",G12) -> 30 d | H53: =IF(H12="","",H12) -> 1500 | K53: =IF(K12="","",K12) -> 
C54: =IF(C13="","",C13) -> 973 | D54: INSS | G54: =IF(G13="","",G13) ->  | K54: =IF(K13="","",K13) -> 155.9659091
C55: 987 | D55: IRFF S.SALARIO | G55: 0 | K55: =IF(K14="","",K14) -> 1.468465909
C56: 123 | D56: HORA EXTRA 50% | G56: 0 | H56: 0 | K56: =IF(K15="","",K15) -> 
C57: 124 | D57: HORA EXTRA 100% | G57: 0 | H57: 0 | K57: =IF(K16="","",K16) -> 
P66: _____/_____/_____ | Q66: DATA
C70: =IF(C29="","",C29) ->  | D70: =IF(D29="","",D29) ->  | G70: =IF(G29="","",G29) ->  | H70: =IF(H29="","",H29) -> 
H72: Total de Vencimentos | K72: Total de Descontos
H73: =IF(H32="","",H32) -> 1500 | K73: =IF(K32="","",K32) -> 157.434375
H75: Valor Líquido | K75: =IF(K34="","",K34) -> 1342.565625
C78: Salário Base | E78: Sal. Contr. INSS | F78: Base Cálc. FGTS | G78: FGTS do Mês | I78: Base Cálc. IRRF
C79: =IF(C38="","",C38) -> 0 | E79: =IF(E38="","",E38) -> 0 | F79: =IF(F38="","",F38) -> 0 | G79: =IF(G38="","",G38) -> 0 | I79: =IF(I38="","",I38) -> 0

Sheet Dash
B11: Empresa: | C11: =CG!C10 -> Empresa ABCDE
B14: Salário Líquido Total: | C14: =SUM('Colab - Realizado'!U14:U63) -> 6963.041477
B16: Total INSS: | C16: =SUM('Colab - Realizado'!Q14:Q63) -> 768.4772727
B18: Total IR: | C18: =SUM('Colab - Realizado'!R14:R63) -> 101.4357955
B20: Total Hora Extra: | C20: =SUM('Colab - Realizado'!K14:K63) -> 382.9545455
B83: Rótulos de Linha | C83: Salário Líquido | D83: Hora Extra | F83: Rótulos de Linha | G83: Salário Líquido | H83: Hora Extra
B84: Administrativo | C84: 3257.55 | D84: 1380.681818 | F84: João Alves | G84: 1127.659091 | H84: 19.09090909
B85: Almoxarifado | C85: 1825.823864 | D85: 23.86363636 | F85: José da Silva | G85: 3257.55 | H85: 1380.681818
B86: Produção | C86: 1127.659091 | D86: 19.09090909 | F86: Paulo Vitor | G86: 1825.823864 | H86: 23.86363636
B87: (vazio) | C87: 0 | D87: 0 | F87: (vazio) | G87: 0 | H87: 0
B88: Total Geral | C88: 6211.032955 | D88: 1423.636364 | F88: Total Geral | G88: 6211.032955 | H88: 1423.636364

Sheet Instruções

Sheet Lista
A1: Janeiro | C1: 2021
A2: Fevereiro | C2: 2022
A3: Março | C3: 2023
A4: Abril | C4: 2024
A5: Maio | C5: 2025
A6: Junho | C6: 2026
A7: Julho | C7: 2027
A8: Agosto | C8: 2028
A9: Setembro | C9: 2029
A10: Outubro | C10: 2030
A11: Novembro
A12: Dezembro
